bitfinex/quotes_SOLUSD_20250522
["timestamp","ask_amount","ask_price","bid_price","bid_amount"]
[1747926298155,0.14216157,178.85,178.8,40.06]
[1747926298757,0.14216157,178.83,178.8,40.06]
[1747926299659,17.18135095,178.81,178.75,40.06]
[1747926299958,17.32351252,178.8,178.75,40.06]
[1747926300334,17.18135095,178.81,178.75,40.06]
[1747926300534,0.14216157,178.8,178.75,40.06]
[1747926300760,5.73529765,178.8,178.75,40.06]
[1747926300941,5.59313608,178.8,178.75,40.06]
[1747926301141,0.14216157,178.82,178.75,40.06]
[1747926301142,5.59261185,178.81,178.75,99.58]
[1747926301934,5.59261185,178.81,178.78,26.0]
[1747926302336,17.32351252,178.8,178.75,40.06]
[1747926303058,5.59315397,178.79,178.75,40.06]
[1747926303359,5.59292537,178.8,178.75,40.06]
[1747926304666,5.59292537,178.8,178.78,26.0]
[1747926305367,5.59252838,178.81,178.78,26.0]
[1747926305567,6.85880641,178.87,178.78,26.0]
[1747926305568,19.56779578,178.87,178.78,26.0]
[1747926305746,0.14216157,178.86,178.8,26.0]
[1747926305943,27.23362246,178.86,178.8,26.0]
[1747926306157,27.23362246,178.86,178.79,26.0]
[1747926306362,0.14216157,178.86,178.79,26.0]
[1747926306569,27.23362246,178.86,178.79,26.0]
[1747926307469,5.5912776,178.85,178.79,26.0]
[1747926308167,5.73315473,178.86,178.81,1.6358]
[1747926308541,5.73315473,178.86,178.82,40.06]
[1747926308741,5.73315473,178.86,178.82,66.06]
[1747926309170,46.80202812,178.86,178.82,40.06]
[1747926309474,5.73315473,178.86,178.82,40.06]
[1747926311370,136.9,178.91,178.85,26.0]
[1747926311572,5.73187649,178.9,178.85,26.0]
[1747926313863,19.7061638,178.9,178.85,26.0]
[1747926314163,0.14216157,178.88,178.82,66.06]
[1747926314358,0.14216157,178.89,178.82,66.06]
[1747926315458,5.59033989,178.88,178.82,66.06]
[1747926315663,0.14216157,178.89,178.85,26.0]
[1747926315664,5.73225546,178.89,178.85,26.0]
[1747926317057,0.14216157,178.87,178.81,1.6358]
[1747926317375,0.14216157,178.85,178.81,1.6358]
[1747926317676,0.14216157,178.85,178.8,40.06]
[1747926318379,0.14216157,178.86,178.8,40.06]
[1747926318563,26.14216157,178.86,178.8,40.06]
[1747926318765,5.5912776,178.85,178.8,40.06]
[1747926319482,0.14216157,178.84,178.8,40.06]
[1747926320766,0.14216157,178.82,178.77,1.6003]
[1747926321964,5.59190292,178.83,178.77,1.6003]
[1747926322273,5.59168707,178.84,178.78,59.52]
[1747926322601,5.59168707,178.84,178.79,6.2536]
[1747926323285,5.59137092,178.85,178.79,6.2536]
[1747926324172,5.59137092,178.85,178.79,11.84662314]
[1747926324371,5.59137092,178.85,178.79,6.2536]
[1747926324689,5.59137092,178.85,178.8,39.98]
[1747926324979,5.73314258,178.86,178.8,45.57281766]
[1747926325387,5.73314258,178.86,178.8,39.98]
[1747926325765,5.73314258,178.86,178.81,26.0]
[1747926326166,5.59033989,178.88,178.81,26.0]
[1747926326368,0.14216157,178.87,178.81,26.0]
[1747926326989,5.590965,178.86,178.81,26.0]
[1747926327184,5.590965,178.86,178.82,33.52]
[1747926327489,5.59033989,178.88,178.82,33.52]
[1747926328467,0.14216157,178.89,178.82,33.52]
[1747926328666,5.58996382,178.9,178.83,1.597]
[1747926328871,5.58996382,178.9,178.84,5.59159024]
[1747926329378,5.58950222,178.91,178.85,26.0]
[1747926329600,5.58950222,178.91,178.86,26.0]
[1747926329768,5.58950222,178.91,178.87,39.98]
[1747926330275,0.14216157,178.93,178.87,79.6351]
[1747926330999,5.58909009,178.92,178.87,79.6351]
[1747926331409,5.58909009,178.92,178.87,85.22571507]
[1747926331570,5.73091401,178.94,178.87,85.22571507]
[1747926331771,5.58875244,178.94,178.89,1.5988]
[1747926332299,0.14216157,178.97,178.9,26.0]
[1747926333007,5.58784085,178.96,178.9,26.0]
[1747926334067,0.14216157,179.0,178.9,31.58968278]
[1747926334601,19.69523418,179.0,178.9,31.58968278]
[1747926335314,5.58596804,179.02,178.95,1.5129]
[1747926335497,5.58596804,179.02,178.96,39.96]
[1747926335690,5.58503211,179.05,178.97,26.0]
[1747926335902,5.58503211,179.05,178.99,32.5622]
[1747926336105,18.26587835,179.06,179.0,33.52]
[1747926336305,18.12377952,179.06,179.0,33.52]
[1747926336532,8.56768478,179.06,179.0,33.52]
[1747926336819,5.7265699,179.07,179.0,33.52]
[1747926337696,5.58440833,179.07,179.0,39.10647516]
[1747926337892,5.58440833,179.07,179.01,1.6267]
[1747926338118,5.5841406,179.08,179.03,26.0]
[1747926338318,5.5841406,179.08,179.04,39.96]
[1747926340900,0.14216157,179.07,179.04,39.96]
[1747926341600,5.5847202,179.06,179.04,39.96]
[1747926341794,0.14216157,179.05,179.01,1.6267]
[1747926341994,0.14216157,179.05,178.98,39.94]
[1747926342213,0.14216157,179.05,178.97,73.44]
[1747926342893,17.18194018,179.04,178.97,73.44]
[1747926343232,0.14216157,178.99,178.95,39.94]
[1747926343410,5.58721644,178.98,178.95,39.94]
[1747926344121,46.60156564,178.98,178.91,39.94]
[1747926344296,19.55525756,178.98,178.91,39.94]
[1747926345299,0.14216157,178.97,178.91,39.94]
[1747926345600,27.18846965,178.95,178.91,39.94]
[1747926345795,0.14216157,178.95,178.91,39.94]
[1747926347606,5.72972971,178.97,178.91,39.94]
[1747926347996,5.72972971,178.97,178.91,45.52932121]
[1747926348218,0.14216157,178.98,178.91,105.02932121]
[1747926348406,0.14216157,179.01,178.91,105.02932121]
[1747926348603,0.14216157,179.01,178.94,26.0]
[1747926348807,0.14216157,179.01,178.95,7.9239]
[1747926349115,0.14216157,179.03,178.95,7.9239]
[1747926349315,0.14216157,179.03,178.96,33.5]
[1747926349503,0.14216157,179.03,178.97,5.58752863]
[1747926349714,5.72782275,179.03,178.97,5.58752863]
[1747926350100,5.72782275,179.03,178.96,33.5]
[1747926350611,5.72782275,179.03,178.96,39.0877376]
[1747926350831,32.77413083,179.03,178.96,33.5]
[1747926351041,0.14216157,178.99,178.92,33.5]
[1747926351212,27.18846965,178.99,178.92,33.5]
[1747926351418,0.14216157,178.97,178.92,33.5]
[1747926353436,27.18846965,178.97,178.92,33.5]
[1747926353642,19.55744299,178.96,178.91,39.94]
[1747926354047,5.58784085,178.96,178.91,39.94]
[1747926354221,0.14216157,178.96,178.91,39.94]
[1747926356723,5.58787013,178.96,178.91,39.94]
[1747926357041,5.58787013,178.96,178.91,45.52937705]
[1747926357546,5.72975351,178.97,178.91,45.52937705]
[1747926358350,0.14216157,178.97,178.91,45.52937705]
[1747926359726,5.58757117,178.97,178.91,45.52937705]
[1747926360224,0.14216157,178.96,178.91,39.94]
[1747926361472,5.58806294,178.96,178.91,39.94]
[1747926362226,0.14216157,178.95,178.91,39.94]
[1747926362924,5.58659217,179.0,178.94,26.0]
[1747926363125,0.14216157,178.99,178.94,26.0]
[1747926363541,0.14216157,178.97,178.94,26.0]
[1747926364130,0.14216157,178.97,178.93,33.5]
[1747926365552,5.58784085,178.96,178.93,33.5]
[1747926365930,0.14216157,178.95,178.93,33.5]
[1747926366657,0.14216157,178.95,178.91,39.94]
[1747926367439,5.5884654,178.94,178.91,39.94]
[1747926368755,0.14216157,178.93,178.91,39.94]
[1747926369054,0.14216157,178.93,178.86,7.7886]
[1747926369255,0.14216157,178.9,178.86,39.86]
[1747926369460,0.14216157,178.87,178.82,1.6082]
[1747926369643,27.22615769,178.87,178.8,39.86]
[1747926369845,0.14216157,178.85,178.8,39.86]
[1747926370157,27.22615769,178.85,178.8,39.86]
[1747926370545,0.14216157,178.83,178.8,39.86]
[1747926370854,0.14216157,178.81,178.75,41.4621]
[1747926371055,0.14216157,178.79,178.75,39.86]
[1747926371263,0.14216157,178.79,178.69,8.41793773]
[1747926371264,0.14216157,178.78,178.72,248.88]
[1747926371463,5.59377971,178.77,178.72,248.88]
[1747926371677,0.14216157,178.76,178.72,248.88]
[1747926372774,0.14216157,178.76,178.72,39.86]
[1747926372954,27.08399612,178.75,178.65,13.28712486]
[1747926373160,27.22615769,178.74,178.67,39.88]
[1747926373564,0.14216157,178.7,178.67,39.88]
[1747926374088,0.14216157,178.67,178.62,39.88]
[1747926374254,27.08399612,178.67,178.62,39.88]
[1747926374453,0.14216157,178.66,178.62,39.88]
[1747926375364,27.22615769,178.67,178.62,39.88]
[1747926375568,0.14216157,178.65,178.62,39.88]
[1747926376557,5.73909389,178.67,178.62,39.88]
[1747926376963,0.14216157,178.65,178.62,39.88]
[1747926377265,27.22615769,178.66,178.62,39.88]
[1747926377462,0.14216157,178.66,178.62,39.88]
[1747926377669,5.59753708,178.65,178.62,39.88]
[1747926378584,5.59753708,178.65,178.55,11.11585137]
[1747926378585,0.14216157,178.61,178.57,39.88]
[1747926379249,0.14216157,178.63,178.57,45.47991281]
[1747926379451,26.0,178.66,178.58,33.54]
[1747926379675,31.59748049,178.66,178.58,39.1395751]
[1747926380782,0.14216157,178.7,178.58,39.1395751]
[1747926380958,5.73813247,178.7,178.59,18.64964886]
[1747926381272,0.14216157,178.71,178.61,6.6616]
[1747926381483,5.59538043,178.72,178.62,35.0423]
[1747926381657,5.59565776,178.71,178.63,5.5981638]
[1747926381852,5.73753391,178.72,178.64,39.8]
[1747926382054,29.56556191,178.73,178.64,39.8]
[1747926382263,23.97050098,178.73,178.64,39.8]
[1747926382684,29.56569396,178.73,178.64,39.8]
[1747926383184,27.08399612,178.79,178.65,18.64964886]
[1747926383397,27.08399612,178.79,178.66,33.54]
[1747926383398,27.22615769,178.79,178.66,33.54]
[1747926383693,0.14216157,178.76,178.66,33.54]
[1747926383864,5.59440559,178.75,178.66,33.54]
[1747926384063,19.58041957,178.75,178.66,33.54]
[1747926384264,0.14216157,178.74,178.66,33.54]
[1747926385301,0.14216157,178.74,178.64,45.39779393]
[1747926385302,0.14216157,178.71,178.64,39.8]
[1747926385478,0.14216157,178.71,178.64,73.34]
[1747926385876,19.58589815,178.7,178.64,73.34]
[1747926387711,0.14216157,178.69,178.64,73.34]
[1747926387884,5.59659726,178.68,178.64,73.34]
[1747926388082,5.59565776,178.71,178.64,73.34]
[1747926388382,5.73756314,178.72,178.64,78.93769532]
[1747926388879,0.14216157,178.74,178.64,78.93769532]
[1747926389092,137.04216157,178.74,178.64,73.34]
[1747926389401,137.04216157,178.74,178.64,78.93776904]
[1747926389772,137.04216157,178.74,178.64,73.34]
[1747926389994,5.59503161,178.73,178.64,73.34]
[1747926390575,19.58261063,178.73,178.64,73.34]
[1747926390799,19.58261063,178.73,178.65,33.54]
[1747926391172,5.59503161,178.73,178.65,33.54]
[1747926391598,27.22615769,178.7,178.62,1.5023]
[1747926391896,0.14216157,178.65,178.61,39.82]
[1747926392190,5.59785042,178.64,178.57,1.5453]
[1747926392398,5.59785042,178.64,178.57,7.14530143]
[1747926393496,5.5975932,178.65,178.57,7.14530143]
[1747926394007,5.5975932,178.65,178.58,33.54]
[1747926394694,0.14216157,178.64,178.57,1.5453]
[1747926394994,0.14216157,178.64,178.57,41.3653]
[1747926396072,5.5975932,178.65,178.57,41.3653]
[1747926396274,5.5975932,178.65,178.57,46.96531296]
[1747926396778,5.5975932,178.65,178.57,72.96531296]
[1747926397301,0.63230641,178.71,178.61,26.0]
[1747926397302,5.59565776,178.71,178.61,26.0]
[1747926397503,5.59535001,178.72,178.63,18.64964886]
[1747926397800,5.59535001,178.72,178.65,1.5277]
[1747926399970,5.59471858,178.74,178.65,7.12519679]
[1747926400783,0.14216157,178.73,178.65,7.12519679]
[1747926401094,0.14216157,178.73,178.65,1.5277]
[1747926401292,0.14216157,178.7,178.62,39.82]
[1747926401492,27.22615769,178.7,178.62,39.82]
[1747926402301,0.14216157,178.68,178.62,39.82]
[1747926402492,19.58918676,178.67,178.62,39.82]
[1747926402696,5.5969105,178.67,178.62,39.82]
[1747926402893,0.14216157,178.66,178.62,39.82]
[1747926403879,5.5969105,178.67,178.62,39.82]
[1747926404409,5.59753708,178.65,178.62,39.82]
[1747926406178,27.08399612,178.64,178.62,39.82]
[1747926406906,32.68202865,178.64,178.62,39.82]
[1747926407401,27.22615769,178.63,178.62,39.82]
[1747926407610,27.08399612,178.63,178.62,39.82]
[1747926407812,32.68202865,178.64,178.62,39.82]
[1747926408502,27.22615769,178.63,178.62,39.82]
[1747926409204,32.82432149,178.63,178.62,39.82]
[1747926409500,32.68215992,178.63,178.62,39.82]
[1747926411092,32.82432149,178.63,178.62,39.82]
[1747926413001,0.14216157,178.6,178.57,39.74]
[1747926413181,27.08399612,178.58,178.57,39.74]
[1747926414604,27.22615769,178.58,178.57,39.74]
[1747926415280,26.14216157,178.62,178.57,39.74]
[1747926415508,27.08399612,178.6,178.57,39.74]
[1747926415883,27.08399612,178.61,178.57,39.74]
[1747926416306,0.14216157,178.62,178.57,39.74]
[1747926416603,27.08399612,178.62,178.57,45.33999139]
[1747926417697,32.68250677,178.62,178.57,39.74]
[1747926418009,27.08399612,178.6,178.57,39.74]
[1747926419791,32.68320654,178.6,178.57,39.74]
[1747926420314,0.14216157,178.57,178.5,248.84]
[1747926420523,27.08399612,178.53,178.5,248.84]
[1747926420884,32.68560938,178.52,178.5,248.84]
[1747926421086,27.08399612,178.51,178.49,1.5375]
[1747926421388,27.08399612,178.5,178.47,39.74]
[1747926421586,27.08399612,178.48,178.47,39.74]
[1747926421905,27.22615769,178.48,178.42,39.74]
[1747926422109,27.08399612,178.44,178.42,39.74]
[1747926422425,0.14216157,178.48,178.42,39.74]
[1747926422595,27.08399612,178.45,178.42,39.74]
[1747926422922,27.08399612,178.47,178.42,45.34469614]
[1747926423083,0.14216157,178.52,178.43,33.56]
[1747926423289,27.22615769,178.52,178.43,59.56]
[1747926423490,32.68529562,178.53,178.43,59.56]
[1747926423690,27.08399612,178.52,178.44,1.6316]
[1747926423922,32.68529562,178.53,178.44,1.6316]
[1747926424230,27.08399612,178.55,178.46,26.0]
[1747926424521,27.08399612,178.54,178.47,33.56]
[1747926424895,32.68528036,178.54,178.47,39.16306074]
[1747926426026,13.9981426,178.6,178.48,18.64964886]
[1747926426320,27.08399612,178.58,178.49,46.1498]
[1747926426510,32.82557535,178.59,178.49,46.1498]
[1747926427127,32.68341378,178.59,178.5,18.64964886]
[1747926427424,27.08399612,178.59,178.52,5.60161326]
[1747926427631,5.59914974,178.6,178.53,1.5279]
[1747926427839,27.08399612,178.57,178.53,1.5279]
[1747926427996,0.14216157,178.59,178.53,74.8679]
[1747926428328,27.08399612,178.56,178.53,74.8679]
[1747926428523,0.14216157,178.59,178.53,41.2879]
[1747926428524,27.08399612,178.57,178.53,41.2879]
[1747926428705,27.08399612,178.55,178.53,39.76]
[1747926428913,27.08399612,178.54,178.53,39.76]
[1747926429216,27.22615769,178.54,178.49,41.4991]
[1747926429419,5.60098577,178.54,178.49,41.4991]
[1747926429641,27.08399612,178.57,178.49,47.1015558]
[1747926429822,0.14216157,178.61,178.52,26.0]
[1747926430140,32.68247333,178.62,178.53,33.58]
[1747926430296,27.08399612,178.64,178.54,18.64964886]
[1747926430496,27.08399612,178.61,178.55,41.2893]
[1747926430745,27.08399612,178.58,178.56,39.76]
[1747926431030,0.14216157,178.6,178.55,35.1093]
[1747926431031,27.08399612,178.6,178.55,1.5293]
[1747926431598,5.59941766,178.59,178.55,1.5293]
[1747926432036,32.68341378,178.59,178.55,1.5293]
[1747926432523,27.08399612,178.58,178.55,1.5293]
[1747926432730,32.68341378,178.59,178.55,1.5293]
[1747926432938,5.59847721,178.62,178.55,7.12992363]
[1747926433310,5.59847721,178.62,178.55,7.12985596]
[1747926433511,5.59847721,178.62,178.55,1.5293]
[1747926433711,5.5981638,178.63,178.55,7.12996149]
[1747926434640,5.5969105,178.67,178.6,26.0]
[1747926434950,5.5969105,178.67,178.61,73.34]
[1747926435518,5.59628406,178.69,178.61,78.93865823]
[1747926436743,0.14216157,178.72,178.62,1.6108]
[1747926436920,5.59503161,178.73,178.64,26.0]
[1747926437115,5.59503161,178.73,178.65,6.1254]
[1747926437315,13.9846134,178.77,178.66,33.56]
[1747926437516,27.08399612,178.76,178.66,33.56]
[1747926438023,0.14216157,178.76,178.66,33.56]
[1747926438221,0.14216157,178.74,178.66,33.56]
[1747926438522,26.58399612,178.73,178.66,33.56]
[1747926438725,5.59503161,178.73,178.66,33.56]
[1747926438944,32.67902773,178.73,178.66,33.56]
[1747926439261,5.59503161,178.73,178.66,33.56]
[1747926439546,27.08399612,178.76,178.66,39.15716624]
[1747926439914,27.08399612,178.76,178.66,65.15716624]
[1747926440111,5.59409263,178.76,178.66,65.15716624]
[1747926440942,32.67808875,178.76,178.66,65.15716624]
[1747926441141,27.22615769,178.75,178.65,6.1254]
[1747926441330,27.08399612,178.71,178.66,33.56]
[1747926442018,0.14216157,178.74,178.66,33.56]
[1747926442218,46.80548191,178.76,178.66,33.56]
[1747926442544,27.22615769,178.75,178.66,33.56]
[1747926443217,27.08399612,178.74,178.66,33.56]
[1747926443646,5.59503161,178.73,178.66,33.56]
[1747926444649,5.59503161,178.73,178.66,39.15717743]
[1747926445146,0.14216157,178.78,178.7,1.6076]
[1747926445349,13.98309976,178.79,178.71,73.2]
[1747926445720,19.57625373,178.79,178.71,73.2]
[1747926445920,5.59315397,178.79,178.71,78.79564998]
[1747926446158,19.56981024,178.85,178.71,78.79564998]
[1747926446451,27.08399612,178.82,178.72,32.2396]
[1747926446849,0.14216157,178.84,178.72,32.7988588]
[1747926447448,27.08399612,178.83,178.72,32.7988588]
[1747926447643,5.59219865,178.83,178.73,5.59503161]
[1747926447818,5.59219865,178.83,178.76,26.0]
[1747926448025,5.59219865,178.83,178.77,33.56]
[1747926448228,5.59164057,178.84,178.78,39.64]
[1747926448627,142.63337302,178.86,178.79,27.6481]
[1747926449445,142.49121145,178.86,178.79,27.6481]
[1747926449626,5.59121145,178.86,178.79,27.6481]
[1747926450045,5.59121145,178.86,178.79,33.24119498]
[1747926450545,5.59121145,178.86,178.79,27.6481]
[1747926450721,5.59121145,178.86,178.79,7.24120964]
[1747926450921,5.59121145,178.86,178.81,26.0]
[1747926451150,5.59121145,178.86,178.82,33.54]
[1747926452164,27.08399612,178.84,178.79,1.6481]
[1747926453142,27.08399612,178.85,178.79,1.6481]
[1747926453326,5.59121145,178.86,178.81,26.0]
[1747926453657,32.67520757,178.86,178.81,26.0]
[1747926454083,5.59033989,178.88,178.81,26.0]
[1747926454230,5.59033989,178.88,178.81,37.69770974]
[1747926454550,5.59033989,178.88,178.81,32.1052]
[1747926454749,27.08399612,178.87,178.81,32.1052]
[1747926454943,27.22615769,178.86,178.81,32.1052]
[1747926455251,27.22615769,178.84,178.79,1.6481]
[1747926455617,27.22615769,178.84,178.81,26.0]
[1747926456652,5.59190292,178.83,178.81,26.0]
[1747926457455,0.14216157,178.82,178.79,1.6481]
[1747926457752,27.08399612,178.8,178.78,39.64]
[1747926458131,27.22615769,178.79,178.78,39.64]
[1747926458356,0.14216157,178.78,178.72,79.3668]
[1747926458558,5.59409263,178.76,178.72,79.3668]
[1747926458747,5.59409263,178.76,178.75,26.0]
[1747926459248,27.08399612,178.8,178.75,26.0]
[1747926459553,5.73468995,178.81,178.75,26.0]
[1747926459750,27.08399612,178.8,178.75,26.0]
[1747926460546,32.81868607,178.81,178.76,26.0]
[1747926460750,27.08399612,178.8,178.75,26.0]
[1747926461137,27.08399612,178.78,178.75,26.0]
[1747926461442,27.08399612,178.79,178.75,26.0]
[1747926462750,5.59346683,178.78,178.75,26.0]
[1747926462949,32.67746295,178.78,178.75,26.0]
[1747926463144,27.22615769,178.77,178.75,26.0]
[1747926463323,32.67746295,178.78,178.75,26.0]
[1747926464332,27.22615769,178.77,178.75,26.0]
[1747926464830,5.59409263,178.76,178.75,26.0]
[1747926465470,32.67772918,178.78,178.75,26.0]
[1747926465648,32.67772918,178.78,178.74,39.62]
[1747926465839,5.59373306,178.78,178.74,39.62]
[1747926467243,27.08399612,178.77,178.74,39.62]
[1747926467756,5.59373306,178.78,178.74,39.62]
[1747926468263,32.67772918,178.78,178.74,39.62]
[1747926468458,27.08399612,178.77,178.74,39.62]
[1747926469154,5.59409263,178.76,178.74,39.62]
[1747926469753,32.67808875,178.76,178.74,39.62]
[1747926470053,5.59409263,178.76,178.74,39.62]
[1747926470942,32.67808875,178.76,178.74,39.62]
[1747926471148,27.22615769,178.75,178.74,39.62]
[1747926471364,27.22615769,178.75,178.69,73.16]
[1747926471671,27.22615769,178.75,178.69,99.16]
[1747926471966,0.14216157,178.75,178.69,99.16]
[1747926472184,27.22615769,178.75,178.69,73.16]
[1747926472476,0.14216157,178.73,178.69,99.16]
[1747926472660,27.08399612,178.73,178.69,99.16]
[1747926473267,0.14216157,178.74,178.69,99.16]
[1747926473268,32.67934079,178.72,178.69,99.16]
[1747926473441,32.67910019,178.73,178.69,73.16]
[1747926474160,5.59510407,178.73,178.69,73.16]
[1747926474362,32.67880458,178.74,178.69,73.16]
[1747926474881,5.59480846,178.74,178.69,78.75625417]
[1747926475069,5.59480846,178.74,178.69,73.16]
[1747926475372,32.67848079,178.75,178.69,73.16]
[1747926475575,32.67848079,178.75,178.69,78.75621515]
[1747926476156,27.08399612,178.75,178.69,78.75621515]
[1747926476361,142.49350106,178.78,178.72,26.0]
[1747926476584,169.57749718,178.78,178.73,33.54]
[1747926476763,27.22615769,178.77,178.73,33.54]
[1747926477274,32.67808875,178.76,178.73,33.54]
[1747926477782,32.81995636,178.77,178.73,33.54]
[1747926477983,32.67779479,178.77,178.73,33.54]
[1747926478173,5.59379867,178.77,178.73,33.54]
[1747926478478,32.67779479,178.77,178.73,33.54]
[1747926479665,27.08399612,178.78,178.73,33.54]
[1747926479874,32.67736649,178.79,178.73,39.13501137]
[1747926480365,136.9,178.84,178.76,26.0]
[1747926480676,27.08399612,178.82,178.77,33.54]
[1747926481059,136.9,178.84,178.77,39.763]
[1747926481060,163.98399612,178.84,178.77,39.763]
[1747926481267,169.57569892,178.84,178.8,26.0]
[1747926481467,5.59221563,178.82,178.8,26.0]
[1747926481981,32.67621175,178.82,178.8,26.0]
[1747926482182,5.59221563,178.82,178.8,26.0]
[1747926482378,5.59221563,178.82,178.78,26.0]
[1747926482764,32.6759212,178.83,178.78,26.0]
[1747926487087,27.08399612,178.84,178.78,31.59346485]
[1747926487286,32.67504072,178.86,178.78,5.59346485]
[1747926487463,32.6747369,178.87,178.78,5.59346485]
[1747926487864,163.98399612,178.88,178.78,19.57713192]
[1747926488169,136.9,178.88,178.8,26.0]
[1747926488360,32.67433281,178.89,178.82,1.6183]
[1747926488563,5.58948937,178.91,178.83,65.56]
[1747926489595,32.67348549,178.91,178.83,71.15181411]
[1747926489781,27.08399612,178.92,178.83,71.15181411]
[1747926490663,27.08399612,178.91,178.83,65.56]
[1747926490883,27.08399612,178.89,178.83,65.56]
[1747926491194,27.08399612,178.89,178.83,26.0]
[1747926491399,27.08399612,178.84,178.8,73.08]
[1747926491595,27.08399612,178.83,178.8,73.08]
[1747926491897,27.08399612,178.83,178.8,39.56]
[1747926491898,5.59221563,178.82,178.8,39.56]
[1747926492804,32.67593015,178.83,178.8,39.56]
[1747926492992,27.08399612,178.82,178.8,39.56]
[1747926493403,27.08399612,178.84,178.8,39.56]
[1747926493609,5.59065242,178.87,178.8,39.56]
[1747926493786,27.08399612,178.84,178.8,39.56]
[1747926494181,5.59143103,178.85,178.8,39.56]
[1747926494399,32.67542715,178.85,178.8,39.56]
[1747926495401,32.67542715,178.85,178.8,45.15282874]
[1747926495705,5.59143103,178.85,178.83,26.0]
[1747926496491,32.67542715,178.85,178.83,26.0]
[1747926498114,19.55897574,178.95,178.85,26.0]
[1747926498320,19.55897574,178.95,178.89,26.0]
[1747926498534,27.08399612,178.93,178.89,26.0]
[1747926499207,19.55897574,178.95,178.89,26.0]
[1747926499399,32.6730762,178.93,178.89,26.0]
[1747926500888,32.6730762,178.93,178.88,39.56]
[1747926501097,32.67256162,178.94,178.88,45.15023912]
[1747926501398,32.67256162,178.94,178.88,39.56]
[1747926502193,5.5885655,178.94,178.88,45.15024833]
[1747926502389,27.08399612,178.95,178.88,45.15024833]
[1747926503409,27.08399612,178.96,178.89,26.0]
[1747926503623,27.08399612,178.96,178.9,33.52]
[1747926503783,5.58659217,179.0,178.93,26.0]
[1747926503989,5.58659217,179.0,178.94,35.1594]
[1747926504219,5.58630686,179.01,178.95,39.46]
[1747926504519,5.58630686,179.01,178.96,26.0]
[1747926504696,32.67030298,179.01,178.96,26.0]
[1747926505829,27.08399612,179.0,178.96,26.0]
[1747926506620,46.63600322,179.01,178.96,26.0]
[1747926507814,5.58534405,179.04,178.98,26.0]
[1747926508030,5.58534405,179.04,178.99,33.52]
[1747926510302,5.58508935,179.05,179.02,26.0]
[1747926510707,5.58508935,179.05,179.02,65.46]
[1747926513231,13.95861204,179.11,179.03,33.5]
[1747926513417,27.08399612,179.09,179.03,33.5]
[1747926513600,27.08399612,179.08,179.03,33.5]
[1747926514322,0.14216157,179.1,179.06,26.0]
[1747926514506,27.08399612,179.08,179.06,26.0]
[1747926514706,5.58440833,179.07,179.06,26.0]
[1747926515323,32.66840445,179.07,179.06,26.0]
[1747926515519,0.14216157,179.06,179.0,39.44]
[1747926515727,27.08399612,179.04,179.0,98.94]
[1747926515931,0.14216157,179.06,179.0,39.44]
[1747926516225,27.08399612,179.01,179.0,39.44]
[1747926516428,27.08399612,179.01,178.96,209.04]
[1747926516621,27.08399612,178.99,178.96,235.04]
[1747926516826,5.58721644,178.98,178.96,235.04]
[1747926517013,32.67121256,178.98,178.96,209.04]
[1747926517214,27.08399612,178.97,178.95,72.94]
[1747926517615,27.08399612,178.96,178.93,1.5416]
[1747926517810,19.55525756,178.98,178.92,39.44]
[1747926517811,27.08399612,178.94,178.92,39.44]
[1747926518003,27.08399612,178.93,178.92,39.44]
[1747926518206,27.08399612,178.93,178.92,65.44]
[1747926518406,27.08399612,178.93,178.92,39.44]
[1747926518934,5.58877773,178.93,178.92,39.44]
[1747926519169,5.58815311,178.95,178.92,39.44]
[1747926519315,32.67214923,178.95,178.92,39.44]
[1747926519730,27.08399612,178.94,178.92,39.44]
[1747926519930,27.08399612,178.93,178.92,39.44]
[1747926520438,27.08399612,178.94,178.92,39.44]
[1747926520822,5.58877773,178.93,178.92,39.44]